[Event "Titled Tuesday Blitz March 29 Early 2022"]
[White "Baches Garcia, Guillermo"]
[Black "Marcziter, Dmitrii"]
[WhiteFideId "2209764"]
[BlackFideId "13900765"]
[WhiteElo "2489"]
[BlackElo "2155"]
[Result "1-0"]
[Round "04"]
[TimeControl "180+1"]
[Date "2022.03.30"]
[WhiteClock "0:00:07"]
[BlackClock "0:00:09"]

1. e4 {[%clk 0:03:00]}  e5 {[%clk 0:02:59]} 2. Nf3 {[%clk 0:03:01]}  Nc6 {[%clk 0:02:58]} 3. Bc4 {[%clk 0:03:01]}  Nf6 {[%clk 0:02:57]} 4. Ng5 {[%clk 0:03:00]}  d5 {[%clk 0:02:51]} 5. exd5 {[%clk 0:03:01]}  Na5 {[%clk 0:02:51]} 6. Bb5+ {[%clk 0:03:01]}  c6 {[%clk 0:02:50]} 7. dxc6 {[%clk 0:03:02]}  bxc6 {[%clk 0:02:50]} 8. Qf3 {[%clk 0:03:02]}  Be7 {[%clk 0:02:47]} 9. Bd3 {[%clk 0:02:55]}  O-O {[%clk 0:02:42]} 10. Nc3 {[%clk 0:02:50]}  Rb8 {[%clk 0:02:38]} 11. O-O {[%clk 0:02:44]}  h6 {[%clk 0:02:36]} 12. Nge4 {[%clk 0:02:38]}  Nd5 {[%clk 0:02:35]} 13. Ng3 {[%clk 0:02:27]}  g6 {[%clk 0:02:24]} 14. Be4 {[%clk 0:02:17]}  Be6 {[%clk 0:02:19]} 15. Qe2 {[%clk 0:01:57]}  Nf4 {[%clk 0:02:08]} 16. Qd1 {[%clk 0:01:48]}  f5 {[%clk 0:02:04]} 17. Bf3 {[%clk 0:01:48]}  e4 {[%clk 0:02:03]} 18. Be2 {[%clk 0:01:48]}  Nc4 {[%clk 0:01:55]} 19. d3 {[%clk 0:01:43]}  Nxe2+ {[%clk 0:01:54]} 20. Qxe2 {[%clk 0:01:40]}  Nxb2 {[%clk 0:01:53]} 21. Bxh6 {[%clk 0:01:31]}  Rf7 {[%clk 0:01:49]} 22. Bf4 {[%clk 0:01:16]}  Rb4 {[%clk 0:01:45]} 23. a3 {[%clk 0:01:09]}  Rb7 {[%clk 0:01:40]} 24. h3 {[%clk 0:00:54]}  Bf6 {[%clk 0:01:38]} 25. Bd2 {[%clk 0:00:46]}  Rbe7 {[%clk 0:01:30]} 26. dxe4 {[%clk 0:00:44]}  Bc4 {[%clk 0:01:28]} 27. Qf3 {[%clk 0:00:44]}  Bxf1 {[%clk 0:01:28]} 28. Nxf1 {[%clk 0:00:44]}  Nc4 {[%clk 0:01:24]} 29. Rd1 {[%clk 0:00:33]}  Bd4 {[%clk 0:01:10]} 30. Qd3 {[%clk 0:00:26]}  Ne5 {[%clk 0:01:08]} 31. Qe2 {[%clk 0:00:25]}  f4 {[%clk 0:01:02]} 32. Nh2 {[%clk 0:00:20]}  f3 {[%clk 0:00:58]} 33. Nxf3 {[%clk 0:00:21]}  Nxf3+ {[%clk 0:00:58]} 34. gxf3 {[%clk 0:00:21]}  Rd7 {[%clk 0:00:50]} 35. Rb1 {[%clk 0:00:17]}  Qh4 {[%clk 0:00:47]} 36. Kg2 {[%clk 0:00:16]}  Rh7 {[%clk 0:00:43]} 37. Rh1 {[%clk 0:00:15]}  Rh5 {[%clk 0:00:39]} 38. Qc4+ {[%clk 0:00:14]}  Kg7 {[%clk 0:00:33]} 39. Nd1 {[%clk 0:00:14]}  Bxf2 {[%clk 0:00:27]} 40. Nxf2 {[%clk 0:00:09]}  Rxd2 {[%clk 0:00:26]} 41. Qc3+ {[%clk 0:00:10]}  Kh7 {[%clk 0:00:23]} 42. Qxd2 {[%clk 0:00:10]}  Rg5+ {[%clk 0:00:22]} 43. Ng4 {[%clk 0:00:10]}  Rb5 {[%clk 0:00:17]} 44. Qd7+ {[%clk 0:00:09]}  Kg8 {[%clk 0:00:16]} 45. Qe8+ {[%clk 0:00:09]}  Kg7 {[%clk 0:00:15]} 46. Qd7+ {[%clk 0:00:09]}  Kg8 {[%clk 0:00:15]} 47. Rd1 {[%clk 0:00:08]}  Rb8 {[%clk 0:00:14]} 48. Qe6+ {[%clk 0:00:07]}  Kg7 {[%clk 0:00:12]} 49. Rd7+ {[%clk 0:00:07]}  Kh8 {[%clk 0:00:10]} 50. Qe5+ {[%clk 0:00:07]}  Kg8 {[%clk 0:00:09]} 51. Qg7# {[%clk 0:00:07]} 1-0


[Site "https://www.chess.com"]

[Event "Titled Tuesday Blitz March 29 Early 2022"]
[White "Bachmann, Axel"]
[Black "Fiol, Fabrice"]
[WhiteFideId "3700488"]
[BlackFideId "611670"]
[WhiteElo "2587"]
[BlackElo "2441"]
[Result "1-0"]
[Round "04"]
[TimeControl "180+1"]
[Date "2022.03.30"]
[WhiteClock "0:00:38"]
[BlackClock "0:00:04"]

1. d4 {[%clk 0:03:00]}  Nf6 {[%clk 0:02:59]} 2. g3 {[%clk 0:03:01]}  e6 {[%clk 0:02:54]} 3. c4 {[%clk 0:03:00]}  d5 {[%clk 0:02:52]} 4. Nf3 {[%clk 0:03:00]}  c5 {[%clk 0:02:52]} 5. cxd5 {[%clk 0:03:00]}  exd5 {[%clk 0:02:52]} 6. Nc3 {[%clk 0:03:00]}  Nc6 {[%clk 0:02:52]} 7. Bg2 {[%clk 0:03:00]}  Be7 {[%clk 0:02:53]} 8. O-O {[%clk 0:03:00]}  O-O {[%clk 0:02:53]} 9. dxc5 {[%clk 0:02:59]}  Bxc5 {[%clk 0:02:47]} 10. a3 {[%clk 0:03:00]}  Be6 {[%clk 0:02:43]} 11. b4 {[%clk 0:03:00]}  Be7 {[%clk 0:02:32]} 12. Bb2 {[%clk 0:03:00]}  Re8 {[%clk 0:02:28]} 13. Rc1 {[%clk 0:03:00]}  Rc8 {[%clk 0:02:28]} 14. Na4 {[%clk 0:02:56]}  b6 {[%clk 0:02:22]} 15. Nc3 {[%clk 0:02:50]}  Qd7 {[%clk 0:02:07]} 16. Re1 {[%clk 0:02:41]}  Bh3 {[%clk 0:02:06]} 17. Bh1 {[%clk 0:02:41]}  Rcd8 {[%clk 0:01:59]} 18. e3 {[%clk 0:02:32]}  Bg4 {[%clk 0:01:57]} 19. Qb3 {[%clk 0:02:31]}  Bxf3 {[%clk 0:01:44]} 20. Bxf3 {[%clk 0:02:32]}  Ne5 {[%clk 0:01:45]} 21. Be2 {[%clk 0:02:25]}  Qh3 {[%clk 0:01:41]} 22. Rc2 {[%clk 0:01:14]}  Nfg4 {[%clk 0:01:01]} 23. Bxg4 {[%clk 0:01:14]}  Nxg4 {[%clk 0:01:02]} 24. f3 {[%clk 0:01:14]}  Ne5 {[%clk 0:01:00]} 25. Rf1 {[%clk 0:01:10]}  Qh6 {[%clk 0:00:50]} 26. Nxd5 {[%clk 0:01:04]}  Bd6 {[%clk 0:00:23]} 27. Nf4 {[%clk 0:01:01]}  Bb8 {[%clk 0:00:15]} 28. Rcf2 {[%clk 0:00:53]}  Qd6 {[%clk 0:00:13]} 29. Kg2 {[%clk 0:00:49]}  Qc6 {[%clk 0:00:14]} 30. e4 {[%clk 0:00:45]}  Qc8 {[%clk 0:00:09]} 31. Nd5 {[%clk 0:00:44]}  Qa6 {[%clk 0:00:07]} 32. Qc3 {[%clk 0:00:43]}  f6 {[%clk 0:00:05]} 33. h4 {[%clk 0:00:42]}  Nd3 {[%clk 0:00:04]} 34. Rd2 {[%clk 0:00:40]}  Nxb2 {[%clk 0:00:04]} 35. Qxb2 {[%clk 0:00:41]}  Be5 {[%clk 0:00:05]} 36. Qb3 {[%clk 0:00:40]}  Qb5 {[%clk 0:00:04]} 37. Nc7+ {[%clk 0:00:38]} 1-0


[Site "https://www.chess.com"]

[Event "Titled Tuesday Blitz March 29 Early 2022"]
[White "Bintang, Rasyid A. Hidayat"]
[Black "Biletskiy, Danylo"]
[WhiteFideId "7105355"]
[BlackFideId "14155419"]
[WhiteElo "2365"]
[BlackElo "2087"]
[Result "1-0"]
[Round "04"]
[TimeControl "180+1"]
[Date "2022.03.30"]
[WhiteClock "0:01:10"]
[BlackClock "0:00:02"]

1. d4 {[%clk 0:02:57]}  d5 {[%clk 0:02:59]} 2. Bf4 {[%clk 0:02:57]}  g6 {[%clk 0:02:58]} 3. c4 {[%clk 0:02:52]}  c6 {[%clk 0:02:58]} 4. Nc3 {[%clk 0:02:52]}  Nf6 {[%clk 0:02:58]} 5. Nf3 {[%clk 0:02:51]}  Bg7 {[%clk 0:02:58]} 6. e3 {[%clk 0:02:51]}  O-O {[%clk 0:02:58]} 7. Be2 {[%clk 0:02:51]}  h6 {[%clk 0:02:49]} 8. O-O {[%clk 0:02:50]}  Nh5 {[%clk 0:02:47]} 9. Be5 {[%clk 0:02:50]}  f6 {[%clk 0:02:44]} 10. Bxb8 {[%clk 0:02:39]}  Rxb8 {[%clk 0:02:43]} 11. cxd5 {[%clk 0:02:39]}  cxd5 {[%clk 0:02:43]} 12. Nd2 {[%clk 0:02:39]}  Be6 {[%clk 0:02:04]} 13. Bxh5 {[%clk 0:02:39]}  gxh5 {[%clk 0:02:04]} 14. Qxh5 {[%clk 0:02:39]}  Bf7 {[%clk 0:02:05]} 15. Qf3 {[%clk 0:02:36]}  e5 {[%clk 0:02:02]} 16. Nb3 {[%clk 0:02:34]}  b6 {[%clk 0:01:57]} 17. Rfd1 {[%clk 0:02:26]}  e4 {[%clk 0:01:54]} 18. Qf4 {[%clk 0:02:18]}  Qd7 {[%clk 0:01:44]} 19. a4 {[%clk 0:02:15]}  Rbc8 {[%clk 0:01:30]} 20. a5 {[%clk 0:02:07]}  Be6 {[%clk 0:00:46]} 21. axb6 {[%clk 0:02:05]}  axb6 {[%clk 0:00:47]} 22. Ra6 {[%clk 0:01:57]}  Rc6 {[%clk 0:00:29]} 23. Rda1 {[%clk 0:01:54]}  Rfc8 {[%clk 0:00:28]} 24. Ra7 {[%clk 0:01:53]}  R6c7 {[%clk 0:00:28]} 25. Rxc7 {[%clk 0:01:52]}  Rxc7 {[%clk 0:00:28]} 26. h3 {[%clk 0:01:49]}  Kh7 {[%clk 0:00:20]} 27. Ra6 {[%clk 0:01:44]}  Rxc3 {[%clk 0:00:04]} 28. bxc3 {[%clk 0:01:39]}  Qb5 {[%clk 0:00:04]} 29. Ra7 {[%clk 0:01:32]}  Qxb3 {[%clk 0:00:03]} 30. Qc7 {[%clk 0:01:28]}  Qd1+ {[%clk 0:00:03]} 31. Kh2 {[%clk 0:01:28]}  Kg6 {[%clk 0:00:03]} 32. Qxg7+ {[%clk 0:01:27]}  Kf5 {[%clk 0:00:04]} 33. Qg4+ {[%clk 0:01:27]}  Qxg4 {[%clk 0:00:04]} 34. hxg4+ {[%clk 0:01:27]}  Kxg4 {[%clk 0:00:05]} 35. Rb7 {[%clk 0:01:26]}  Kg5 {[%clk 0:00:02]} 36. Rxb6 {[%clk 0:01:24]}  Bf7 {[%clk 0:00:02]} 37. Rb5 {[%clk 0:01:18]}  h5 {[%clk 0:00:02]} 38. c4 {[%clk 0:01:18]}  f5 {[%clk 0:00:02]} 39. c5 {[%clk 0:01:17]}  Kf6 {[%clk 0:00:03]} 40. Rb6+ {[%clk 0:01:17]}  Ke7 {[%clk 0:00:03]} 41. Rh6 {[%clk 0:01:16]}  Be8 {[%clk 0:00:03]} 42. c6 {[%clk 0:01:16]}  Kd8 {[%clk 0:00:03]} 43. Kg3 {[%clk 0:01:14]}  Kc7 {[%clk 0:00:03]} 44. Kf4 {[%clk 0:01:15]}  Bxc6 {[%clk 0:00:04]} 45. Rxh5 {[%clk 0:01:13]}  Bd7 {[%clk 0:00:04]} 46. Rxf5 {[%clk 0:01:12]}  Kc6 {[%clk 0:00:04]} 47. Rf6+ {[%clk 0:01:12]}  Kb5 {[%clk 0:00:04]} 48. Ke5 {[%clk 0:01:13]}  Kc4 {[%clk 0:00:04]} 49. Rd6 {[%clk 0:01:13]}  Bg4 {[%clk 0:00:02]} 50. Rxd5 {[%clk 0:01:13]}  Kd3 {[%clk 0:00:02]} 51. Kf4 {[%clk 0:01:09]}  Bd1 {[%clk 0:00:02]} 52. Re5 {[%clk 0:01:09]}  Ke2 {[%clk 0:00:01]} 53. Kg3 {[%clk 0:01:09]}  Bc2 {[%clk 0:00:01]} 54. d5 {[%clk 0:01:09]}  Kd3 {[%clk 0:00:01]} 55. d6 {[%clk 0:01:10]}  Ba4 {[%clk 0:00:02]} 56. Re7 {[%clk 0:01:10]} 1-0


[Site "https://www.chess.com"]

[Event "Titled Tuesday Blitz March 29 Early 2022"]
[White "Brodowski, Piotr"]
[Black "Dreev, Aleksey"]
[WhiteFideId "1124480"]
[BlackFideId "4100107"]
[WhiteElo "2422"]
[BlackElo "2625"]
[Result "1-0"]
[Round "04"]
[TimeControl "180+1"]
[Date "2022.03.29"]
[WhiteClock "0:00:07"]
[BlackClock "0:00:10"]

1. c4 {[%clk 0:03:00]}  c6 {[%clk 0:02:58]} 2. Nf3 {[%clk 0:02:54]}  d5 {[%clk 0:02:59]} 3. e3 {[%clk 0:02:53]}  Nf6 {[%clk 0:02:58]} 4. Qc2 {[%clk 0:02:53]}  g6 {[%clk 0:02:55]} 5. b3 {[%clk 0:02:53]}  Bg7 {[%clk 0:02:55]} 6. Bb2 {[%clk 0:02:54]}  O-O {[%clk 0:02:54]} 7. d3 {[%clk 0:02:29]}  Na6 {[%clk 0:02:53]} 8. a3 {[%clk 0:02:28]}  Bf5 {[%clk 0:02:49]} 9. Nbd2 {[%clk 0:02:15]}  Nc5 {[%clk 0:02:26]} 10. b4 {[%clk 0:02:02]}  Ne6 {[%clk 0:02:13]} 11. Nh4 {[%clk 0:01:53]}  a5 {[%clk 0:02:11]} 12. Nxf5 {[%clk 0:01:53]}  gxf5 {[%clk 0:02:11]} 13. Be2 {[%clk 0:01:43]}  d4 {[%clk 0:02:11]} 14. O-O {[%clk 0:01:35]}  Qd7 {[%clk 0:02:06]} 15. Nf3 {[%clk 0:01:29]}  Ng4 {[%clk 0:01:58]} 16. h3 {[%clk 0:01:06]}  Nh6 {[%clk 0:01:58]} 17. Qc1 {[%clk 0:00:34]}  Rad8 {[%clk 0:01:44]} 18. exd4 {[%clk 0:00:32]}  f4 {[%clk 0:01:44]} 19. Re1 {[%clk 0:00:29]}  Nf5 {[%clk 0:01:44]} 20. Ne5 {[%clk 0:00:29]}  Qc7 {[%clk 0:01:42]} 21. Bg4 {[%clk 0:00:26]}  Nfxd4 {[%clk 0:01:37]} 22. Nxf7 {[%clk 0:00:20]}  Kxf7 {[%clk 0:01:29]} 23. Rxe6 {[%clk 0:00:16]}  Nxe6 {[%clk 0:01:24]} 24. Bxe6+ {[%clk 0:00:15]}  Kxe6 {[%clk 0:01:25]} 25. Bxg7 {[%clk 0:00:16]}  Rf7 {[%clk 0:01:14]} 26. Qc3 {[%clk 0:00:16]}  Qd6 {[%clk 0:00:58]} 27. Re1+ {[%clk 0:00:13]}  Kd7 {[%clk 0:00:59]} 28. Be5 {[%clk 0:00:12]}  Qg6 {[%clk 0:00:56]} 29. d4 {[%clk 0:00:13]}  f3 {[%clk 0:00:47]} 30. g3 {[%clk 0:00:12]}  Qf5 {[%clk 0:00:46]} 31. Kh2 {[%clk 0:00:11]}  Rg8 {[%clk 0:00:41]} 32. b5 {[%clk 0:00:10]}  Rg6 {[%clk 0:00:40]} 33. Qxa5 {[%clk 0:00:09]}  Rf8 {[%clk 0:00:31]} 34. Qc7+ {[%clk 0:00:07]}  Ke8 {[%clk 0:00:31]} 35. Qxb7 {[%clk 0:00:05]}  Rh6 {[%clk 0:00:22]} 36. g4 {[%clk 0:00:05]}  Qxg4 {[%clk 0:00:18]} 37. Qxc6+ {[%clk 0:00:05]}  Rxc6 {[%clk 0:00:18]} 38. hxg4 {[%clk 0:00:06]}  Rxc4 {[%clk 0:00:19]} 39. b6 {[%clk 0:00:05]}  Kd7 {[%clk 0:00:13]} 40. Rb1 {[%clk 0:00:05]}  Rc2 {[%clk 0:00:12]} 41. Kg3 {[%clk 0:00:05]}  Re2 {[%clk 0:00:11]} 42. b7 {[%clk 0:00:05]}  Rxe5 {[%clk 0:00:10]} 43. dxe5 {[%clk 0:00:05]}  Rb8 {[%clk 0:00:11]} 44. a4 {[%clk 0:00:05]}  Kc7 {[%clk 0:00:11]} 45. Kxf3 {[%clk 0:00:05]}  Rf8+ {[%clk 0:00:11]} 46. Ke4 {[%clk 0:00:05]}  Kb8 {[%clk 0:00:12]} 47. a5 {[%clk 0:00:05]}  Rxf2 {[%clk 0:00:11]} 48. a6 {[%clk 0:00:06]}  Ra2 {[%clk 0:00:12]} 49. Rb6 {[%clk 0:00:06]}  e6 {[%clk 0:00:11]} 50. Rc6 {[%clk 0:00:06]}  Ra4+ {[%clk 0:00:10]} 51. Kd3 {[%clk 0:00:06]}  Ra3+ {[%clk 0:00:10]} 52. Kc4 {[%clk 0:00:07]} 1-0


[Site "https://www.chess.com"]

[Event "Titled Tuesday Blitz March 29 Early 2022"]
[White "Bychkov, Vladimir"]
[Black "Vlassov, Nikolai"]
[WhiteFideId "24151513"]
[BlackFideId "4103360"]
[WhiteElo "2253"]
[BlackElo "2407"]
[Result "0-1"]
[Round "04"]
[TimeControl "180+1"]
[Date "2022.03.30"]
[WhiteClock "0:00:01"]
[BlackClock "0:00:07"]

1. e4 {[%clk 0:02:52]}  Nc6 {[%clk 0:02:59]} 2. b3 {[%clk 0:02:48]}  Nf6 {[%clk 0:02:55]} 3. d3 {[%clk 0:02:44]}  d5 {[%clk 0:02:55]} 4. exd5 {[%clk 0:02:44]}  Qxd5 {[%clk 0:02:51]} 5. Bb2 {[%clk 0:02:39]}  Bg4 {[%clk 0:02:50]} 6. f3 {[%clk 0:02:37]}  Bh5 {[%clk 0:02:48]} 7. Nc3 {[%clk 0:02:36]}  Qa5 {[%clk 0:02:47]} 8. Ne2 {[%clk 0:02:32]}  e5 {[%clk 0:02:47]} 9. Ng3 {[%clk 0:02:30]}  Bb4 {[%clk 0:02:42]} 10. Qd2 {[%clk 0:02:25]}  Nd5 {[%clk 0:02:34]} 11. Nxh5 {[%clk 0:02:21]}  O-O {[%clk 0:02:20]} 12. a3 {[%clk 0:01:54]}  Bxc3 {[%clk 0:02:20]} 13. Bxc3 {[%clk 0:01:54]}  Qxc3 {[%clk 0:02:21]} 14. Qxc3 {[%clk 0:01:54]}  Nxc3 {[%clk 0:02:21]} 15. Ng3 {[%clk 0:01:52]}  Nd4 {[%clk 0:02:19]} 16. Kd2 {[%clk 0:01:40]}  Nd5 {[%clk 0:02:19]} 17. Ne2 {[%clk 0:01:38]}  c5 {[%clk 0:02:17]} 18. Rb1 {[%clk 0:01:35]}  a5 {[%clk 0:02:12]} 19. c3 {[%clk 0:01:32]}  Ne6 {[%clk 0:02:08]} 20. c4 {[%clk 0:01:30]}  Ne7 {[%clk 0:02:05]} 21. g3 {[%clk 0:01:29]}  Rfd8 {[%clk 0:02:02]} 22. Bh3 {[%clk 0:01:27]}  f5 {[%clk 0:01:49]} 23. Ke3 {[%clk 0:01:02]}  Ra6 {[%clk 0:01:42]} 24. Rhd1 {[%clk 0:00:55]}  g5 {[%clk 0:01:31]} 25. f4 {[%clk 0:00:51]}  exf4+ {[%clk 0:01:22]} 26. gxf4 {[%clk 0:00:48]}  g4 {[%clk 0:01:19]} 27. Bg2 {[%clk 0:00:44]}  Rd7 {[%clk 0:01:16]} 28. Nc3 {[%clk 0:00:35]}  Nd4 {[%clk 0:01:09]} 29. Bd5+ {[%clk 0:00:23]}  Kg7 {[%clk 0:01:07]} 30. b4 {[%clk 0:00:18]}  axb4 {[%clk 0:01:03]} 31. axb4 {[%clk 0:00:18]}  b6 {[%clk 0:00:55]} 32. bxc5 {[%clk 0:00:17]}  bxc5 {[%clk 0:00:55]} 33. Rb8 {[%clk 0:00:17]}  Ra3 {[%clk 0:00:54]} 34. Rc1 {[%clk 0:00:16]}  Ra6 {[%clk 0:00:37]} 35. Rcb1 {[%clk 0:00:13]}  Rh6 {[%clk 0:00:35]} 36. R1b7 {[%clk 0:00:13]}  Rxb7 {[%clk 0:00:30]} 37. Rxb7 {[%clk 0:00:13]}  Kf8 {[%clk 0:00:28]} 38. Na4 {[%clk 0:00:10]}  Rh3+ {[%clk 0:00:26]} 39. Kf2 {[%clk 0:00:10]}  Nxd5 {[%clk 0:00:24]} 40. cxd5 {[%clk 0:00:09]}  Rxh2+ {[%clk 0:00:24]} 41. Kg1 {[%clk 0:00:09]}  Nf3+ {[%clk 0:00:24]} 42. Kf1 {[%clk 0:00:09]}  g3 {[%clk 0:00:24]} 43. Rb2 {[%clk 0:00:08]}  h5 {[%clk 0:00:16]} 44. Rxh2 {[%clk 0:00:03]}  Nxh2+ {[%clk 0:00:16]} 45. Kg2 {[%clk 0:00:04]}  h4 {[%clk 0:00:16]} 46. Nxc5 {[%clk 0:00:03]}  Ke7 {[%clk 0:00:16]} 47. Ne6 {[%clk 0:00:04]}  Ng4 {[%clk 0:00:13]} 48. Nd4 {[%clk 0:00:04]}  Ne3+ {[%clk 0:00:11]} 49. Kf3 {[%clk 0:00:04]}  g2 {[%clk 0:00:10]} 50. Kf2 {[%clk 0:00:03]}  h3 {[%clk 0:00:10]} 51. Nf3 {[%clk 0:00:02]}  Nxd5 {[%clk 0:00:09]} 52. Ng5 {[%clk 0:00:01]}  Nxf4 {[%clk 0:00:09]} 53. d4 {[%clk 0:00:01]}  h2 {[%clk 0:00:07]} 0-1


[Site "https://www.chess.com"]

[Event "Titled Tuesday Blitz March 29 Early 2022"]
[White "Chernyavsky, Alexander"]
[Black "Dronavalli, Harika"]
[WhiteFideId "24131156"]
[BlackFideId "5015197"]
[WhiteElo "2414"]
[BlackElo "2667"]
[Result "0-1"]
[Round "04"]
[TimeControl "180+1"]
[Date "2022.03.30"]
[WhiteClock "0:00:01"]
[BlackClock "0:00:20"]

1. d4 {[%clk 0:03:00]}  Nf6 {[%clk 0:02:59]} 2. Bg5 {[%clk 0:02:59]}  e6 {[%clk 0:02:54]} 3. e4 {[%clk 0:02:55]}  h6 {[%clk 0:02:54]} 4. Bxf6 {[%clk 0:02:55]}  Qxf6 {[%clk 0:02:54]} 5. e5 {[%clk 0:02:54]}  Qe7 {[%clk 0:02:53]} 6. c3 {[%clk 0:02:51]}  d6 {[%clk 0:02:53]} 7. Nf3 {[%clk 0:02:50]}  g6 {[%clk 0:02:51]} 8. h4 {[%clk 0:02:48]}  Bg7 {[%clk 0:02:50]} 9. h5 {[%clk 0:02:48]}  g5 {[%clk 0:02:50]} 10. Bb5+ {[%clk 0:02:34]}  Nd7 {[%clk 0:02:44]} 11. Qe2 {[%clk 0:02:31]}  a6 {[%clk 0:02:43]} 12. Bxd7+ {[%clk 0:02:15]}  Bxd7 {[%clk 0:02:43]} 13. Nbd2 {[%clk 0:02:15]}  d5 {[%clk 0:02:39]} 14. Nh2 {[%clk 0:02:13]}  c5 {[%clk 0:02:35]} 15. dxc5 {[%clk 0:01:56]}  Qxc5 {[%clk 0:02:34]} 16. Nb3 {[%clk 0:01:55]}  Qc7 {[%clk 0:02:27]} 17. Ng4 {[%clk 0:01:54]}  Bb5 {[%clk 0:02:26]} 18. Qe3 {[%clk 0:01:54]}  Qc4 {[%clk 0:02:20]} 19. Nd4 {[%clk 0:01:46]}  Rc8 {[%clk 0:02:17]} 20. Kd2 {[%clk 0:01:39]}  a5 {[%clk 0:01:56]} 21. b3 {[%clk 0:01:35]}  Qc5 {[%clk 0:01:56]} 22. a4 {[%clk 0:01:24]}  Bd7 {[%clk 0:01:47]} 23. Rhc1 {[%clk 0:01:06]}  b6 {[%clk 0:01:23]} 24. f4 {[%clk 0:00:59]}  gxf4 {[%clk 0:01:14]} 25. Qxf4 {[%clk 0:00:59]}  Qe7 {[%clk 0:01:14]} 26. Rf1 {[%clk 0:00:48]}  Rh7 {[%clk 0:01:08]} 27. Nf6+ {[%clk 0:00:44]}  Bxf6 {[%clk 0:01:08]} 28. exf6 {[%clk 0:00:44]}  Qc5 {[%clk 0:01:06]} 29. Qg3 {[%clk 0:00:44]}  Rh8 {[%clk 0:00:59]} 30. Rfe1 {[%clk 0:00:36]}  Kd8 {[%clk 0:00:58]} 31. Rac1 {[%clk 0:00:30]}  Qf8 {[%clk 0:00:58]} 32. Nf3 {[%clk 0:00:21]}  Rg8 {[%clk 0:00:57]} 33. Qh2 {[%clk 0:00:20]}  Qc5 {[%clk 0:00:53]} 34. Ne5 {[%clk 0:00:17]}  Be8 {[%clk 0:00:49]} 35. Re2 {[%clk 0:00:15]}  Rg5 {[%clk 0:00:45]} 36. Qf4 {[%clk 0:00:12]}  Qc7 {[%clk 0:00:35]} 37. c4 {[%clk 0:00:07]}  Rf5 {[%clk 0:00:35]} 38. Qg3 {[%clk 0:00:06]}  Rxf6 {[%clk 0:00:30]} 39. Qh4 {[%clk 0:00:06]}  Qe7 {[%clk 0:00:28]} 40. Qd4 {[%clk 0:00:02]}  Qb4+ {[%clk 0:00:24]} 41. Kd3 {[%clk 0:00:01]}  Rf5 {[%clk 0:00:20]} 0-1


[Site "https://www.chess.com"]

[Event "Titled Tuesday Blitz March 29 Early 2022"]
[White "Chigaev, Maksim"]
[Black "Khamzin, Olzhas"]
[WhiteFideId "4108116"]
[BlackFideId "13701690"]
[WhiteElo "2502"]
[BlackElo "2194"]
[Result "1-0"]
[Round "04"]
[TimeControl "180+1"]
[Date "2022.03.29"]
[WhiteClock "0:00:05"]
[BlackClock "0:00:25"]

1. e4 {[%clk 0:03:00]}  e6 {[%clk 0:02:58]} 2. d4 {[%clk 0:02:58]}  d6 {[%clk 0:02:59]} 3. Nc3 {[%clk 0:02:57]}  Be7 {[%clk 0:03:00]} 4. f4 {[%clk 0:02:57]}  Nd7 {[%clk 0:02:59]} 5. Nf3 {[%clk 0:02:55]}  a6 {[%clk 0:03:00]} 6. a4 {[%clk 0:02:55]}  b6 {[%clk 0:03:00]} 7. Bd3 {[%clk 0:02:54]}  Bb7 {[%clk 0:03:01]} 8. O-O {[%clk 0:02:54]}  c5 {[%clk 0:03:01]} 9. Kh1 {[%clk 0:02:51]}  cxd4 {[%clk 0:03:01]} 10. Nxd4 {[%clk 0:02:52]}  Qc7 {[%clk 0:03:02]} 11. Qg4 {[%clk 0:02:41]}  Ngf6 {[%clk 0:02:57]} 12. Qxg7 {[%clk 0:02:29]}  Rg8 {[%clk 0:02:56]} 13. Qh6 {[%clk 0:02:29]}  O-O-O {[%clk 0:02:51]} 14. Bd2 {[%clk 0:02:23]}  Rg6 {[%clk 0:02:47]} 15. Qh3 {[%clk 0:02:19]}  Rdg8 {[%clk 0:02:48]} 16. g3 {[%clk 0:01:58]}  Nc5 {[%clk 0:02:09]} 17. Rae1 {[%clk 0:01:54]}  Kb8 {[%clk 0:02:06]} 18. f5 {[%clk 0:01:27]}  Rg4 {[%clk 0:01:52]} 19. fxe6 {[%clk 0:01:15]}  Ncxe4 {[%clk 0:01:49]} 20. Nxe4 {[%clk 0:01:03]}  Nxe4 {[%clk 0:01:48]} 21. Bxe4 {[%clk 0:00:57]}  Rxe4 {[%clk 0:01:49]} 22. Rxe4 {[%clk 0:00:49]}  Bxe4+ {[%clk 0:01:49]} 23. Kg1 {[%clk 0:00:50]}  f5 {[%clk 0:01:32]} 24. Qxh7 {[%clk 0:00:34]}  Rf8 {[%clk 0:01:25]} 25. Be3 {[%clk 0:00:31]}  Ka8 {[%clk 0:00:39]} 26. c3 {[%clk 0:00:29]}  d5 {[%clk 0:00:34]} 27. Qg7 {[%clk 0:00:23]}  Re8 {[%clk 0:00:27]} 28. Bf4 {[%clk 0:00:20]}  Qd8 {[%clk 0:00:24]} 29. Qe5 {[%clk 0:00:20]}  Bc5 {[%clk 0:00:22]} 30. b4 {[%clk 0:00:18]}  Be7 {[%clk 0:00:20]} 31. a5 {[%clk 0:00:13]}  Bf6 {[%clk 0:00:20]} 32. Qc7 {[%clk 0:00:08]}  Qxc7 {[%clk 0:00:21]} 33. Bxc7 {[%clk 0:00:09]}  bxa5 {[%clk 0:00:21]} 34. bxa5 {[%clk 0:00:07]}  Bxd4+ {[%clk 0:00:21]} 35. cxd4 {[%clk 0:00:08]}  Rxe6 {[%clk 0:00:22]} 36. Re1 {[%clk 0:00:05]}  Rc6 {[%clk 0:00:22]} 37. Bf4 {[%clk 0:00:03]}  Rc2 {[%clk 0:00:23]} 38. h4 {[%clk 0:00:02]}  Rg2+ {[%clk 0:00:22]} 39. Kf1 {[%clk 0:00:02]}  Kb7 {[%clk 0:00:23]} 40. Rc1 {[%clk 0:00:02]}  Rh2 {[%clk 0:00:23]} 41. Rc7+ {[%clk 0:00:03]}  Ka8 {[%clk 0:00:23]} 42. Re7 {[%clk 0:00:03]}  Bd3+ {[%clk 0:00:18]} 43. Ke1 {[%clk 0:00:03]}  Bb5 {[%clk 0:00:18]} 44. Re5 {[%clk 0:00:03]}  Bc4 {[%clk 0:00:17]} 45. Rxf5 {[%clk 0:00:03]}  Re2+ {[%clk 0:00:17]} 46. Kd1 {[%clk 0:00:03]}  Ra2 {[%clk 0:00:18]} 47. Re5 {[%clk 0:00:03]}  Rxa5 {[%clk 0:00:18]} 48. h5 {[%clk 0:00:03]}  Ra1+ {[%clk 0:00:19]} 49. Kd2 {[%clk 0:00:04]}  Rh1 {[%clk 0:00:19]} 50. g4 {[%clk 0:00:04]}  a5 {[%clk 0:00:19]} 51. h6 {[%clk 0:00:04]}  Kb7 {[%clk 0:00:20]} 52. Rh5 {[%clk 0:00:04]}  Ba2 {[%clk 0:00:19]} 53. Rxh1 {[%clk 0:00:04]}  a4 {[%clk 0:00:19]} 54. h7 {[%clk 0:00:04]}  Kc6 {[%clk 0:00:20]} 55. h8=Q {[%clk 0:00:05]}  Kb5 {[%clk 0:00:21]} 56. Qe5 {[%clk 0:00:05]}  Kc4 {[%clk 0:00:22]} 57. Rc1+ {[%clk 0:00:05]}  Kb3 {[%clk 0:00:22]} 58. Qxd5+ {[%clk 0:00:06]}  Ka3 {[%clk 0:00:23]} 59. Rc3+ {[%clk 0:00:06]}  Bb3 {[%clk 0:00:24]} 60. Bd6+ {[%clk 0:00:06]}  Ka2 {[%clk 0:00:25]} 61. Rxb3 {[%clk 0:00:06]}  axb3 {[%clk 0:00:25]} 62. Kc3 {[%clk 0:00:06]}  Kb1 {[%clk 0:00:24]} 63. Qxb3+ {[%clk 0:00:04]}  Kc1 {[%clk 0:00:25]} 64. Qc2# {[%clk 0:00:05]} 1-0


[Site "https://www.chess.com"]